fUSD/lending_fUSD_20240518
["ID","MTS","AMOUNT","RATE_DAILY","PERIOD"]
[327419518,1716057041839,-500.0,0.00030273,2]
[327419519,1716057041848,-500.0,0.00030273,2]
[327419520,1716057041858,-500.0,0.00030273,2]
[327419521,1716057041867,-500.0,0.00030273,2]
[327419522,1716057041878,-627.28,0.00030273,2]
[327419523,1716057041888,-500.0,0.00030273,2]
[327419524,1716057041898,-500.0,0.00030273,2]
[327419525,1716057041907,-500.0,0.00030273,2]
[327419526,1716057041917,-500.0,0.00030273,2]
[327419527,1716057041926,-500.0,0.00030273,2]
[327419528,1716057041935,-1495.64,0.00030273,2]
[327419529,1716057041946,-1673.93,0.00030273,2]
[327419530,1716057041955,-500.0,0.00030273,2]
[327419531,1716057041964,-500.0,0.00030273,2]
[327419532,1716057041973,-500.0,0.00030273,2]
[327419533,1716057041983,-500.0,0.00030273,2]
[327419534,1716057041995,-500.0,0.00030273,2]
[327419535,1716057042007,-500.0,0.00030273,2]
[327419536,1716057042017,-500.0,0.00030273,2]
[327419537,1716057042027,-500.0,0.00030273,2]
[327419538,1716057042038,-500.0,0.00030273,2]
[327419539,1716057042049,-500.0,0.00030273,2]
[327419540,1716057042058,-500.0,0.00030273,2]
[327419541,1716057042068,-500.0,0.00030273,2]
[327419542,1716057042077,-500.0,0.00030273,2]
[327419543,1716057042086,-500.0,0.00030273,2]
[327419544,1716057042096,-500.0,0.00030273,2]
[327419545,1716057042106,-500.0,0.00030273,2]
[327419546,1716057042116,-500.0,0.00030273,2]
[327419547,1716057042126,-500.0,0.00030273,2]
[327419548,1716057042135,-500.0,0.00030273,2]
[327419549,1716057042144,-500.0,0.00030273,2]
[327419550,1716057042154,-500.0,0.00030273,2]
[327419551,1716057042164,-500.0,0.00030273,2]
[327419552,1716057042173,-500.0,0.00030273,2]
[327419553,1716057042182,-1311.77,0.00030273,2]
[327419554,1716057042192,-500.0,0.00030273,2]
[327419555,1716057042201,-500.0,0.00030273,2]
[327419556,1716057042210,-500.0,0.00030273,2]
[327419557,1716057042220,-500.0,0.00030273,2]
[327419558,1716057042230,-500.0,0.00030273,2]
[327419559,1716057042239,-767.99965936,0.00030302,2]
[327419560,1716057042249,-3000.0,0.0003035,2]
[327419561,1716057042259,-500.0,0.00030372,2]
[327419562,1716057042268,-527.12066101,0.00030372,2]
[327419563,1716057042278,-500.0,0.00030372,2]
[327419564,1716057042289,-500.0,0.00030372,2]
[327419565,1716057042299,-500.0,0.00030372,2]
[327419566,1716057042310,-500.0,0.00030372,2]
[327419567,1716057042320,-500.0,0.00030372,2]
[327419568,1716057042330,-500.0,0.00030372,2]
[327419569,1716057042339,-500.0,0.00030372,2]
[327419570,1716057042348,-500.0,0.00030372,2]
[327419571,1716057042358,-500.0,0.00030372,2]
[327419572,1716057042368,-631.83601279,0.00030372,2]
[327419573,1716057042377,-500.0,0.00030372,2]
[327419574,1716057042386,-500.0,0.00030372,2]
[327419575,1716057042395,-500.0,0.00030372,2]
[327419576,1716057042404,-500.0,0.00030372,2]
[327419577,1716057042414,-500.0,0.00030372,2]
[327419578,1716057042423,-500.0,0.00030372,2]
[327419579,1716057042432,-150.0,0.00030372,2]
[327419580,1716057042442,-500.0,0.00030372,2]
[327419581,1716057042452,-500.0,0.00030372,2]
[327419582,1716057042461,-389.92269641,0.00030372,2]
[327419583,1716057042470,-500.0,0.00030372,2]
[327419584,1716057042479,-500.0,0.00030372,2]
[327419585,1716057042489,-494.27577779,0.00030372,2]
[327419586,1716057042499,-500.0,0.00030372,2]
[327419587,1716057042508,-500.0,0.00030372,2]
[327419588,1716057042518,-358.98140872,0.00030372,2]
[327419589,1716057042527,-543.69783746,0.00030372,2]
[327419590,1716057042538,-500.0,0.00030372,2]
[327419591,1716057042549,-202.8243946,0.00030372,2]
[327419592,1716057042560,-500.0,0.00030372,2]
[327419593,1716057042571,-500.0,0.00030372,2]
[327419594,1716057042581,-500.0,0.00030372,2]
[327419595,1716057042590,-500.0,0.00030372,2]
[327419596,1716057042599,-373.692416,0.00030372,2]
[327419597,1716057042612,-500.0,0.00030372,2]
[327419598,1716057042621,-500.0,0.00030372,2]
[327419599,1716057042631,-500.0,0.00030372,2]
[327419600,1716057042640,-628.02899053,0.00030372,2]
[327419601,1716057042650,-500.0,0.00030372,2]
[327419602,1716057042660,-500.0,0.00030372,2]
[327419603,1716057042670,-500.0,0.00030372,2]
[327419604,1716057042680,-500.0,0.00030372,2]
[327419605,1716057042691,-500.0,0.00030372,2]
[327419606,1716057042702,-500.0,0.00030372,2]
[327419607,1716057042712,-500.0,0.00030372,2]
[327419608,1716057042721,-500.0,0.00030372,2]
[327419609,1716057042730,-510.23367806,0.00030372,2]
[327419610,1716057042740,-500.0,0.00030372,2]
[327419611,1716057042750,-235.49011643,0.00030372,2]
[327419612,1716057042759,-500.0,0.00030372,2]
[327419613,1716057042769,-500.0,0.00030372,2]
[327419614,1716057042779,-500.0,0.00030372,2]
[327419615,1716057042788,-571.42,0.00030372,2]
[327419616,1716057042798,-500.0,0.00030372,2]
[327419617,1716057042807,-500.0,0.00030372,2]
[327419618,1716057042816,-500.0,0.00030372,2]
[327419619,1716057042827,-500.0,0.00030372,2]
[327419620,1716057042838,-500.0,0.00030372,2]
[327419621,1716057042848,-500.0,0.00030372,2]
[327419622,1716057042858,-500.0,0.00030372,2]
[327419623,1716057042867,-500.0,0.00030372,2]
[327419624,1716057042877,-500.0,0.00030372,2]
[327419625,1716057042886,-500.0,0.00030372,2]
[327419626,1716057042895,-500.0,0.00030372,2]
[327419627,1716057042905,-500.0,0.00030372,2]
[327419628,1716057042914,-500.0,0.00030372,2]
[327419629,1716057042923,-560.62,0.00030372,2]
[327419630,1716057042932,-589.74,0.00030372,2]
[327419631,1716057042942,-500.0,0.00030372,2]
[327419632,1716057042951,-500.0,0.00030372,2]
[327419633,1716057042960,-500.0,0.00030372,2]
[327419634,1716057042971,-520.23844121,0.00030372,2]
[327419635,1716057042980,-500.0,0.00030372,2]
[327419636,1716057042989,-500.0,0.00030372,2]
[327419637,1716057042998,-615.3,0.00030372,2]
[327419638,1716057043007,-500.0,0.00030372,2]
[327419639,1716057043018,-299.95,0.00030372,2]
[327419640,1716057043028,-500.0,0.00030372,2]
[327419641,1716057043037,-500.0,0.00030372,2]
[327419643,1716057043047,-500.0,0.00030372,2]
[327419644,1716057043057,-500.0,0.00030372,2]
[327419645,1716057043066,-500.0,0.00030372,2]
[327419646,1716057043076,-500.0,0.00030372,2]
[327419647,1716057043085,-500.0,0.00030372,2]
[327419648,1716057043095,-500.0,0.00030372,2]
[327419649,1716057043104,-511.3,0.00030372,2]
[327419650,1716057043113,-243.84536137,0.00030372,2]
[327419651,1716057043123,-500.0,0.00030372,2]
[327419652,1716057043132,-500.0,0.00030372,2]
[327419654,1716057043142,-500.0,0.00030372,2]
[327419655,1716057043154,-727.76,0.00030372,2]
[327419656,1716057043163,-500.0,0.00030372,2]
[327419657,1716057043172,-500.0,0.00030372,2]
[327419658,1716057043183,-500.0,0.00030372,2]
[327419659,1716057043192,-1463.13,0.00030372,2]
[327419660,1716057043201,-500.0,0.00030372,2]
[327419661,1716057043210,-500.0,0.00030372,2]
[327419662,1716057043220,-242.29598594,0.00030372,2]
[327419668,1716057043649,-418.8782614,0.00029999,2]
[327419669,1716057043661,-81.1217386,0.00029999,2]
[327419670,1716057043670,-500.0,0.00029999,2]
[327419671,1716057043682,-500.0,0.00030098,2]
[327419672,1716057043691,-459.4,0.00030273,2]
[327419673,1716057043700,-130.29136144,0.00030372,2]
[327419674,1716057043711,-127.41265262,0.00030372,2]
[327419675,1716057043720,-496.50701321,0.00030372,2]
[327419676,1716057043731,-3.49298679,0.00030372,2]
[327419677,1716057043740,-500.0,0.00030372,2]
[327419678,1716057043749,-500.0,0.00030372,2]
[327419679,1716057043758,-297.53585321,0.00030372,2]
[327419680,1716057043769,-202.46414679,0.00030372,2]
[327419681,1716057043779,-400.315847,0.00030372,2]
[327419682,1716057043856,-500.0,0.00030273,2]
[327419684,1716057043865,-99.684153,0.00030372,2]
[327419686,1716057043875,-427.70991151,0.00030372,2]
[327419688,1716057043884,-500.0,0.00030372,2]
[327419690,1716057043893,-500.0,0.00030372,2]
[327419692,1716057043902,-500.0,0.00030372,2]
[327419693,1716057043912,-443.66317857,0.00030372,2]
[327419694,1716057043921,-500.0,0.00030372,2]
[327419695,1716057043930,-500.0,0.00030372,2]
[327419696,1716057043939,-500.0,0.00030372,2]
[327419697,1716057043948,-500.0,0.00030372,2]
[327419698,1716057043957,-500.0,0.00030372,2]
[327419699,1716057043967,-500.0,0.00030372,2]
[327419700,1716057043976,-500.0,0.00030372,2]
[327419701,1716057043985,-500.0,0.00030372,2]
[327419702,1716057043994,-500.0,0.00030372,2]
[327419703,1716057044003,-346.47,0.00030372,2]
[327419704,1716057044012,-500.0,0.00030372,2]
[327419705,1716057044021,-500.0,0.00030372,2]
[327419706,1716057044031,-500.0,0.0003041,2]
[327419707,1716057044040,-200.0,0.0003041,2]
[327419709,1716057044050,-171.16677181,0.00030447,2]
[327419710,1716057044060,-172.24560322,0.00030447,2]
[327419711,1716057044070,-1000.0,0.00030485,15]
[327419712,1716057044079,-1000.0,0.00030502,2]
[327419713,1716057044089,-1083.4848,0.00030502,2]
[327419714,1716057044098,-500.0,0.00030544,2]
[327419715,1716057044107,-500.0,0.00030544,2]
[327419716,1716057044117,-500.0,0.00030544,2]
[327419717,1716057044126,-533.05,0.00030544,2]
[327419718,1716057044136,-500.0,0.00030544,2]
[327419719,1716057044145,-500.0,0.00030544,2]
[327419720,1716057044155,-500.0,0.00030544,2]
[327419721,1716057044164,-500.0,0.00030544,2]
[327419722,1716057044174,-500.0,0.00030544,2]
[327419723,1716057044183,-500.0,0.00030544,2]
[327419724,1716057044192,-500.0,0.00030544,2]
[327419725,1716057044202,-590.9,0.00030544,2]
[327419726,1716057044212,-500.0,0.00030544,2]
[327419727,1716057044221,-500.0,0.00030544,2]
[327419728,1716057044231,-500.0,0.00030544,2]
[327419729,1716057044243,-500.0,0.00030544,2]
[327419730,1716057044252,-500.0,0.00030544,2]
[327419731,1716057044261,-500.0,0.00030544,2]
[327419732,1716057044271,-500.0,0.00030544,2]
[327419733,1716057044281,-404.58181567,0.00030544,2]
[327419734,1716057044290,-500.0,0.00030544,2]
[327419735,1716057044300,-500.0,0.00030544,2]
[327419736,1716057044311,-500.0,0.00030544,2]
[327419737,1716057044320,-500.0,0.00030544,2]
[327419738,1716057044330,-500.0,0.00030544,2]
[327419739,1716057044339,-500.0,0.00030544,2]
[327419740,1716057044348,-500.0,0.00030544,2]
[327419741,1716057044358,-500.0,0.00030544,2]
[327419742,1716057044368,-500.0,0.00030545,2]
[327419743,1716057044377,-500.0,0.00030545,2]
[327419744,1716057044386,-500.0,0.00030545,2]
[327419745,1716057044396,-778.93,0.00030545,2]
[327419746,1716057044405,-307.8,0.00030545,2]
[327419747,1716057044414,-428.85,0.00030545,2]
[327419748,1716057044424,-500.0,0.00030545,2]
[327419749,1716057044433,-500.0,0.00030545,2]
[327419750,1716057044442,-238.96376622,0.00030545,2]
[327419751,1716057044561,-500.0,0.00029999,2]
[327419752,1716057044571,-500.0,0.00030273,2]
[327419753,1716057044580,-261.03623378,0.00030545,2]
[327419754,1716057044589,-500.0,0.00030545,2]
[327419755,1716057044599,-500.0,0.00030545,2]
[327419756,1716057044611,-500.0,0.00030545,2]
[327419757,1716057044620,-500.0,0.00030545,2]
[327419758,1716057044629,-500.0,0.00030545,2]
[327419759,1716057044638,-748.6,0.00030545,2]
[327419760,1716057044649,-500.0,0.00030545,2]
[327419761,1716057044658,-500.0,0.00030545,2]
[327419762,1716057044667,-500.0,0.00030545,2]
[327419763,1716057044677,-500.0,0.00030545,2]
[327419764,1716057044686,-500.0,0.00030545,2]
[327419765,1716057044695,-500.0,0.00030545,2]
[327419766,1716057044704,-500.0,0.00030545,2]
[327419767,1716057044714,-500.0,0.00030545,2]
[327419768,1716057044723,-316955.3637662,0.00030546,15]
[327419769,1716057044780,-35094.047818,0.00030546,15]
[327419771,1716057046537,-500.0,0.00029997,2]
[327419772,1716057046547,-500.0,0.00029997,2]
[327419773,1716057046557,-500.0,0.00029997,2]
[327419774,1716057046567,-176.56,0.00029999,2]
[327419775,1716057046577,-456.71619333,0.00030271,2]
[327419776,1716057046642,-43.28380667,0.00030271,2]
[327419777,1716057046652,-545.64,0.00030475,2]
[327419778,1716057046661,-500.0,0.00030545,2]
[327419779,1716057046671,-12131.27619333,0.00030546,15]
[327419780,1716057046685,-16318.36834393,0.00030546,15]
[327419787,1716057302314,176.51,0.00029251,120]
[327419792,1716057399340,150.0,0.0001,2]
[327419793,1716057399364,150.0,0.0001,2]
[327419794,1716057399386,27.04599991,0.0001,2]
[327419795,1716057469545,-222.50266868,0.00017237,2]
[327419796,1716057469567,-4427.93566092,0.00017259,2]
[327419797,1716057715304,5775.34231115,0.00017259,2]
[327419798,1716057767994,524.53638538,0.000192,2]
[327419846,1716058231551,-157.61,0.00026809,2]
[327419847,1716058231560,-377.901,0.00027274,2]
[327419848,1716058231660,-500.0,0.00027274,2]
[327419849,1716058231769,-96.19177777,0.00027274,2]
[327419850,1716058231779,-250.0,0.00028653,2]
[327419851,1716058231788,-594.32,0.00028726,2]
[327419852,1716058231798,-499.99,0.00028819,2]
[327419853,1716058231807,-3457.32,0.00028958,2]
[327419854,1716058231818,-5000.59218487,0.00028998,2]
[327419855,1716058231829,-994.06607205,0.00028998,2]
[327419856,1716058231840,-746.56164777,0.00028998,2]
[327419857,1716058231852,-830.08689098,0.00028998,2]
[327419859,1716058231886,-1256.0721124,0.00028998,2]
[327419860,1716058231897,-960.42655982,0.00028998,2]
[327419861,1716058231909,-5801.46363943,0.00028998,2]
[327419885,1716058237622,-318.54331447,0.00027819,2]
[327419888,1716058237634,-283.23597077,0.00027819,2]
[327419889,1716058237643,-246.58536268,0.00028998,2]
[327419890,1716058237771,-1391.18950319,0.00028998,2]
[327419891,1716058237783,-3726.19972867,0.00028998,2]
[327419892,1716058237794,-3129.58715822,0.00028998,2]
[327419893,1716058237835,-3062.67819403,0.00028998,2]
[327419894,1716058237846,-4839.39459304,0.00028998,2]
[327419895,1716058238151,-14981.62758374,0.00028998,2]
[327419898,1716058238165,-3146.71372053,0.00028998,2]
[327419900,1716058238176,-17536.23838421,0.00028998,2]
[327419902,1716058238188,-420.42973759,0.00028998,2]
[327419904,1716058238199,-391.29175347,0.00028998,2]
[327419907,1716058238211,-50453.71079622,0.00028998,2]
[327419909,1716058238220,-9054.19922776,0.00029,3]
[327419911,1716058238232,-60945.80077224,0.00029,3]
[327419913,1716058238242,-250.0,0.00029065,2]
[327419915,1716058238252,-150.0,0.00029068,2]
[327419917,1716058238261,-1237.86,0.00029078,2]
[327419919,1716058238271,-172.86,0.00029143,2]
[327419921,1716058238281,-931.0185,0.000298,2]
[327419923,1716058238293,-400.0,0.000299,10]
[327419925,1716058238306,-500.0,0.00029995,2]
[327419927,1716058238316,-500.0,0.00029995,2]
[327419929,1716058238326,-500.0,0.00029995,2]
[327419931,1716058238336,-500.0,0.00029995,2]
[327419933,1716058238345,-999.83,0.00029995,2]
[327419935,1716058238355,-500.0,0.00029995,2]
[327419937,1716058238365,-851.32,0.00029995,2]
[327419939,1716058238374,-711.84,0.00029995,2]
[327419941,1716058238384,-630.49,0.00029995,2]
[327419943,1716058238394,-500.0,0.00029995,2]
[327419946,1716058238404,-2823.0,0.00029995,2]
[327419947,1716058238414,-500.0,0.00029995,2]
[327419949,1716058238423,-500.0,0.00029995,2]
[327419951,1716058238432,-500.0,0.00029995,2]
[327419953,1716058238442,-799.25,0.00029995,2]
[327419955,1716058238451,-500.0,0.00029995,2]
[327419957,1716058238461,-500.0,0.00029995,2]
[327419959,1716058238470,-500.0,0.00029995,2]
[327419961,1716058238480,-500.0,0.00029995,2]
[327419963,1716058238489,-500.0,0.00029995,2]
[327419965,1716058238498,-4227.0,0.00029995,2]
[327419967,1716058238508,-500.0,0.00029995,2]
[327419969,1716058238516,-500.0,0.00029995,2]
[327419970,1716058238526,-500.0,0.00029995,2]
[327419973,1716058238536,-500.0,0.00029995,2]
[327419974,1716058238545,-500.0,0.00029996,2]
[327419977,1716058238555,-500.0,0.00029996,2]
[327419978,1716058238564,-500.0,0.00029996,2]
[327419980,1716058238575,-500.0,0.00029996,2]
[327419983,1716058238585,-493.07578186,0.00029996,2]
[327419984,1716058238594,-500.0,0.00029996,2]
[327419987,1716058238603,-500.0,0.00029996,2]
[327419988,1716058238612,-500.0,0.00029996,2]
[327419990,1716058238622,-500.0,0.00029996,2]
[327419992,1716058238631,-500.0,0.00029996,2]
[327419994,1716058238640,-500.0,0.00029996,2]
[327419997,1716058238654,-302.94609602,0.00029996,2]
[327419999,1716058238664,-500.0,0.00029996,2]
[327420001,1716058238674,-500.0,0.00029996,2]
[327420003,1716058238684,-500.0,0.00029996,2]
[327420005,1716058238693,-500.0,0.00029996,2]
[327420006,1716058238702,-500.0,0.00029996,2]
[327420007,1716058238711,-500.0,0.00029996,2]
[327420008,1716058238720,-500.0,0.00029996,2]
[327420009,1716058238731,-178.59179686,0.00029996,2]
[327420010,1716058238740,-500.0,0.00029996,2]
[327420011,1716058238749,-500.0,0.00029996,2]
[327420012,1716058238759,-500.0,0.00029996,2]
[327420013,1716058238768,-500.0,0.00029996,2]
[327420014,1716058238777,-500.0,0.00029996,2]
[327420015,1716058238785,-500.0,0.00029996,2]
[327420016,1716058238795,-500.0,0.00029996,2]
[327420017,1716058238804,-500.0,0.00029996,2]
[327420019,1716058238814,-500.0,0.00029996,2]
[327420021,1716058238826,-500.0,0.00029996,2]
[327420023,1716058238835,-500.0,0.00029996,2]
[327420024,1716058238846,-170.73276719,0.00029996,2]
[327420026,1716058238856,-2465.98,0.00029996,2]
[327420028,1716058238866,-500.0,0.00029996,2]
[327420030,1716058238875,-500.0,0.00029996,2]
[327420032,1716058238884,-500.0,0.00029996,2]
[327420035,1716058238894,-500.0,0.00029996,2]
[327420037,1716058238903,-500.0,0.00029996,2]
[327420038,1716058238913,-12620.26,0.00029996,2]
[327420040,1716058238922,-500.0,0.00029996,2]
[327420042,1716058238932,-500.0,0.00029996,2]
[327420044,1716058238941,-500.0,0.00029996,2]
[327420046,1716058238950,-500.0,0.00029996,2]
[327420048,1716058238959,-500.0,0.00029996,2]
[327420050,1716058238969,-500.0,0.00029996,2]
[327420052,1716058238978,-500.0,0.00029996,2]
[327420054,1716058238990,-714.58,0.00029996,2]
[327420056,1716058238999,-500.0,0.00029996,2]
[327420058,1716058239009,-500.0,0.00029996,2]
[327420061,1716058239019,-500.0,0.00029996,2]
[327420063,1716058239029,-4384.48,0.00029996,2]
[327420065,1716058239039,-195.42795821,0.00029996,2]
[327420067,1716058239048,-500.0,0.00029996,2]
[327420069,1716058239058,-500.0,0.00029996,2]
[327420071,1716058239069,-500.0,0.00029996,2]
[327420073,1716058239080,-500.0,0.00029996,2]
[327420075,1716058239090,-500.0,0.00029996,2]
[327420077,1716058239100,-500.0,0.00029996,2]
[327420079,1716058239110,-500.0,0.00029996,2]
[327420081,1716058239120,-500.0,0.00029996,2]
[327420083,1716058239130,-500.0,0.00029996,2]
[327420085,1716058239139,-500.0,0.00029996,2]
[327420087,1716058239150,-500.0,0.00029996,2]
[327420088,1716058239159,-500.0,0.00029996,2]
[327420089,1716058239168,-500.0,0.00029996,2]
[327420090,1716058239178,-500.0,0.00029996,2]
[327420091,1716058239187,-500.0,0.00029996,2]
[327420092,1716058239197,-500.0,0.00029996,2]
[327420093,1716058239206,-500.0,0.00029996,2]
[327420094,1716058239216,-500.0,0.00029996,2]
[327420095,1716058239226,-500.0,0.00029996,2]
[327420096,1716058239236,-500.0,0.00029996,2]
[327420097,1716058239246,-500.0,0.00029996,2]
[327420098,1716058239256,-500.0,0.00029996,2]
[327420099,1716058239266,-500.0,0.00029996,2]
[327420100,1716058239276,-686.22,0.00029996,2]
[327420101,1716058239286,-1419.2,0.00029996,2]
[327420102,1716058239296,-500.0,0.00029996,2]
[327420103,1716058239306,-500.0,0.00029996,2]
[327420104,1716058239316,-602.62,0.00029996,2]
[327420105,1716058239325,-827.27,0.00029996,2]
[327420106,1716058239335,-500.0,0.00029996,2]
[327420107,1716058239345,-544.64,0.00029996,2]
[327420108,1716058239355,-500.0,0.00029996,2]
[327420109,1716058239365,-500.0,0.00029996,2]
[327420110,1716058239374,-506.53395183,0.00029996,2]
[327420111,1716058239384,-500.0,0.00029996,2]
[327420112,1716058239393,-1578.01,0.00029996,2]
[327420113,1716058239404,-500.0,0.00029996,2]
[327420114,1716058239413,-674.19,0.00029996,2]
[327420115,1716058239422,-551.15593109,0.00029996,2]
[327420116,1716058239432,-500.0,0.00029996,2]
[327420117,1716058239441,-500.0,0.00029996,2]
[327420118,1716058239451,-4281.36,0.00029996,2]
[327420119,1716058239460,-500.0,0.00029996,2]
[327420120,1716058239470,-500.0,0.00029996,2]
[327420121,1716058239479,-966.37,0.00029996,2]
[327420122,1716058239489,-500.0,0.00029996,2]
[327420123,1716058239499,-500.0,0.00029996,2]
[327420124,1716058239508,-500.0,0.00029996,2]
[327420125,1716058239517,-661.9,0.00029996,2]
[327420126,1716058239527,-500.0,0.00029996,2]
[327420127,1716058239536,-500.0,0.00029996,2]
[327420128,1716058239546,-500.0,0.00029996,2]
[327420129,1716058239556,-500.0,0.00029996,2]
[327420130,1716058239565,-500.0,0.00029996,2]
[327420131,1716058239575,-500.0,0.00029997,2]
[327420132,1716058239584,-500.0,0.00029997,2]
[327420133,1716058239594,-500.0,0.00029997,2]
[327420134,1716058239603,-500.0,0.00029997,2]
[327420135,1716058239612,-513.9,0.00029997,2]
[327420136,1716058239621,-500.0,0.00029997,2]
[327420137,1716058239631,-551.56,0.00029997,2]
[327420138,1716058239642,-500.0,0.00029997,2]
[327420139,1716058239652,-500.0,0.00029997,2]
[327420140,1716058239661,-500.0,0.00029997,2]
[327420141,1716058239671,-500.0,0.00029997,2]
[327420142,1716058239680,-500.0,0.00029997,2]
[327420143,1716058239690,-500.0,0.00029997,2]
[327420144,1716058239699,-500.0,0.00029997,2]
[327420145,1716058239709,-500.0,0.00029997,2]
[327420146,1716058239718,-500.0,0.00029997,2]
[327420147,1716058239728,-500.0,0.00029997,2]
[327420148,1716058239738,-500.0,0.00029997,2]
[327420149,1716058239747,-500.0,0.00029997,2]
[327420150,1716058239757,-500.0,0.00029997,2]
[327420151,1716058239766,-500.0,0.00029997,2]
[327420152,1716058239775,-500.0,0.00029997,2]
[327420153,1716058239785,-500.0,0.00029997,2]
[327420154,1716058239794,-500.0,0.00029997,2]
[327420155,1716058239803,-500.0,0.00029997,2]
[327420156,1716058239813,-500.0,0.00029997,2]
[327420157,1716058239824,-500.0,0.00029997,2]
[327420158,1716058239833,-500.0,0.00029997,2]
[327420159,1716058239844,-500.0,0.00029997,2]
[327420160,1716058239853,-500.0,0.00029997,2]
[327420161,1716058239863,-500.0,0.00029997,2]
[327420162,1716058239872,-500.0,0.00029997,2]
[327420163,1716058239881,-500.0,0.00029997,2]
[327420164,1716058239891,-500.0,0.00029997,2]
[327420165,1716058239901,-500.0,0.00029997,2]
[327420166,1716058239910,-509.3382265,0.00029997,2]
[327420167,1716058239920,-566.28,0.00029997,2]
[327420168,1716058239930,-500.0,0.00029997,2]
[327420169,1716058239939,-500.0,0.00029997,2]
[327420170,1716058239949,-500.0,0.00029997,2]
[327420171,1716058239959,-500.0,0.00029997,2]
[327420172,1716058239968,-500.0,0.00029997,2]
[327420173,1716058239978,-500.0,0.00029997,2]
[327420174,1716058239987,-500.0,0.00029997,2]
[327420175,1716058239997,-500.0,0.00029997,2]
[327420176,1716058240007,-500.0,0.00029997,2]
[327420177,1716058240016,-500.0,0.00029997,2]
[327420178,1716058240025,-500.0,0.00029997,2]
[327420179,1716058240035,-507.4118039,0.00029997,2]
[327420180,1716058240045,-500.0,0.00029997,2]
[327420181,1716058240055,-500.0,0.00029997,2]
[327420182,1716058240065,-500.0,0.00029997,2]
[327420183,1716058240079,-500.0,0.00029997,2]
[327420184,1716058240088,-500.0,0.00029997,2]
[327420185,1716058240098,-500.0,0.00029997,2]
[327420186,1716058240108,-500.0,0.00029997,2]
[327420187,1716058240119,-500.0,0.00029997,2]
[327420188,1716058240128,-500.0,0.00029997,2]
[327420189,1716058240138,-500.0,0.00029997,2]
[327420190,1716058240148,-482.7748929,0.00029997,2]
[327420191,1716058240158,-500.0,0.00029997,2]
[327420192,1716058240167,-500.0,0.00029997,2]
[327420193,1716058240177,-631.34230146,0.00029997,2]
[327420194,1716058240187,-500.0,0.00029997,2]
[327420195,1716058240196,-500.0,0.00029997,2]
[327420196,1716058240206,-500.0,0.00029997,2]
[327420197,1716058240215,-500.0,0.00029997,2]
[327420198,1716058240224,-500.0,0.00029997,2]
[327420199,1716058240234,-500.0,0.00029997,2]
[327420200,1716058240244,-500.0,0.00029997,2]
[327420201,1716058240253,-500.0,0.00029997,2]
[327420202,1716058240263,-505.66721516,0.00029997,2]
[327420203,1716058240272,-500.0,0.00029997,2]
[327420204,1716058240282,-500.0,0.00029997,2]
[327420205,1716058240291,-541.32808556,0.00029997,2]